[Event "*** Titled Tuesday Blitz"]
[Site "Chess.com"]
[Date "2019.01.01"]
[Round "9"]
[White "Hieronymus00"]
[Black "Karina_Oparina"]
[Result "1-0"]
[WhiteElo "2128"]
[BlackElo "2050"]
[TimeControl "180+2"]
[EndTime "15:06:17 PST"]
[Termination "Hieronymus00 won by resignation"]

1. e4 {[%clk 0:03:01.9]} 1... c6 {[%clk 0:03:00.7]} 2. d4 {[%clk 0:03:02.2]}
2... d5 {[%clk 0:03:00.2]} 3. f3 {[%clk 0:03:00]} 3... Qb6 {[%clk 0:02:59.8]} 4.
Nc3 {[%clk 0:02:55.3]} 4... e6 {[%clk 0:02:59.9]} 5. a3 {[%clk 0:02:49.2]} 5...
Ne7 {[%clk 0:02:57.9]} 6. Nge2 {[%clk 0:02:45.2]} 6... Ng6 {[%clk 0:02:57.1]} 7.
Qd3 {[%clk 0:02:41.7]} 7... Be7 {[%clk 0:02:54.1]} 8. g3 {[%clk 0:02:38.1]} 8...
f5 {[%clk 0:02:53]} 9. exf5 {[%clk 0:02:32.6]} 9... exf5 {[%clk 0:02:53.3]} 10.
Bh3 {[%clk 0:02:29]} 10... O-O {[%clk 0:02:53.3]} 11. O-O {[%clk 0:02:27.4]}
11... Na6 {[%clk 0:02:52.5]} 12. Kh1 {[%clk 0:02:27]} 12... Nc7 {[%clk
0:02:52.8]} 13. Nf4 {[%clk 0:02:21.5]} 13... Ne6 {[%clk 0:02:46.7]} 14. Nxe6
{[%clk 0:02:14]} 14... Bxe6 {[%clk 0:02:47]} 15. Re1 {[%clk 0:02:03.7]} 15...
Bd7 {[%clk 0:02:39.8]} 16. Na4 {[%clk 0:01:59.3]} 16... Qd8 {[%clk 0:02:40.2]}
17. Nc5 {[%clk 0:01:54.5]} 17... Bxc5 {[%clk 0:02:40.4]} 18. dxc5 {[%clk
0:01:55.2]} 18... Qf6 {[%clk 0:02:36.2]} 19. c3 {[%clk 0:01:28.5]} 19... Ne5
{[%clk 0:02:35.3]} 20. Qe2 {[%clk 0:01:28.3]} 20... Rae8 {[%clk 0:02:35.3]} 21.
Bf4 {[%clk 0:01:27.9]} 21... Qe6 {[%clk 0:02:32.3]} 22. Bxe5 {[%clk 0:01:13.9]}
22... Qf7 {[%clk 0:02:27.7]} 23. f4 {[%clk 0:01:11.2]} 23... Re7 {[%clk
0:02:24.8]} 24. Qd3 {[%clk 0:01:09]} 24... Rfe8 {[%clk 0:02:24.8]} 25. Re2
{[%clk 0:01:04.7]} 25... g5 {[%clk 0:02:19]} 26. Rae1 {[%clk 0:01:04]} 26... g4
{[%clk 0:02:19.5]} 27. Bg2 {[%clk 0:01:03.5]} 27... Be6 {[%clk 0:02:20.1]} 28.
Bd6 {[%clk 0:00:49.3]} 28... Rd7 {[%clk 0:02:20.2]} 29. Re5 {[%clk 0:00:48.6]}
29... b5 {[%clk 0:02:13.4]} 30. Qe2 {[%clk 0:00:37]} 30... a5 {[%clk 0:02:11]}
31. Rxe6 {[%clk 0:00:36.7]} 31... Rxe6 {[%clk 0:02:08.8]} 32. Qxe6 {[%clk
0:00:37.4]} 32... Qxe6 {[%clk 0:02:09.8]} 33. Rxe6 {[%clk 0:00:38.5]} 33... Kf7
{[%clk 0:02:11]} 34. Re5 {[%clk 0:00:37]} 34... Kg6 {[%clk 0:02:11.4]} 35. Re7
{[%clk 0:00:37.3]} 1-0

[Event "*** Titled Tuesday Blitz"]
[Site "Chess.com"]
[Date "2019.01.01"]
[Round "9"]
[White "Gubajdullin"]
[Black "Generalas"]
[Result "1-0"]
[WhiteElo "2394"]
[BlackElo "2224"]
[TimeControl "180+2"]
[EndTime "15:06:17 PST"]
[Termination "Gubajdullin won by resignation"]

1. d4 {[%clk 0:03:01.9]} 1... Nf6 {[%clk 0:03:00.3]} 2. Bf4 {[%clk 0:03:02.8]}
2... g6 {[%clk 0:02:54]} 3. e3 {[%clk 0:03:03.7]} 3... Bg7 {[%clk 0:02:54.9]} 4.
Nf3 {[%clk 0:03:04.5]} 4... O-O {[%clk 0:02:55.4]} 5. Be2 {[%clk 0:03:05.5]}
5... d6 {[%clk 0:02:55]} 6. O-O {[%clk 0:03:06.3]} 6... Nbd7 {[%clk 0:02:55]} 7.
h3 {[%clk 0:03:06]} 7... b6 {[%clk 0:02:50.9]} 8. a4 {[%clk 0:03:05.4]} 8... a5
{[%clk 0:02:49.8]} 9. Nc3 {[%clk 0:03:05.4]} 9... Bb7 {[%clk 0:02:48.5]} 10. Nb5
{[%clk 0:03:05.8]} 10... Ne4 {[%clk 0:02:30.1]} 11. Nd2 {[%clk 0:03:02.9]} 11...
e5 {[%clk 0:02:26.9]} 12. Bh2 {[%clk 0:02:57.6]} 12... exd4 {[%clk 0:02:01.5]}
13. Nxe4 {[%clk 0:02:55.8]} 13... Bxe4 {[%clk 0:01:59.9]} 14. exd4 {[%clk
0:02:55.4]} 14... Re8 {[%clk 0:01:52.3]} 15. Bf3 {[%clk 0:02:56.1]} 15... Nf6
{[%clk 0:01:37.7]} 16. c3 {[%clk 0:02:55.6]} 16... Qd7 {[%clk 0:01:34.8]} 17.
Re1 {[%clk 0:02:56]} 17... Bf8 {[%clk 0:01:11.5]} 18. Bxe4 {[%clk 0:02:52.5]}
18... Rxe4 {[%clk 0:01:06.8]} 19. Rxe4 {[%clk 0:02:49.6]} 19... Nxe4 {[%clk
0:01:06.2]} 20. Qd3 {[%clk 0:02:50.3]} 20... Re8 {[%clk 0:01:05.6]} 21. Re1
{[%clk 0:02:51]} 21... Nc5 {[%clk 0:00:54.9]} 22. Qd1 {[%clk 0:02:50.3]} 22...
Rxe1+ {[%clk 0:00:54.4]} 23. Qxe1 {[%clk 0:02:50.9]} 23... Nxa4 {[%clk
0:00:55.9]} 24. Qe2 {[%clk 0:02:51.9]} 24... c6 {[%clk 0:00:51.2]} 25. Na3
{[%clk 0:02:51.9]} 25... d5 {[%clk 0:00:50]} 26. Nb1 {[%clk 0:02:51.9]} 26... c5
{[%clk 0:00:48.2]} 27. b3 {[%clk 0:02:48.9]} 27... cxd4 {[%clk 0:00:28.1]} 28.
cxd4 {[%clk 0:02:43.7]} 28... Qf5 {[%clk 0:00:25.5]} 29. Qa2 {[%clk 0:02:38.7]}
29... Qd3 {[%clk 0:00:24.6]} 30. Be5 {[%clk 0:02:35.6]} 30... Nc3 {[%clk
0:00:24.9]} 31. Nxc3 {[%clk 0:02:35.7]} 31... Qxc3 {[%clk 0:00:25.8]} 32. Qa4
{[%clk 0:02:36.6]} 32... Qb4 {[%clk 0:00:25.7]} 33. Qe8 {[%clk 0:02:36]} 33...
b5 {[%clk 0:00:26.5]} 34. Qd8 {[%clk 0:02:31.1]} 34... a4 {[%clk 0:00:26.9]} 35.
Qf6 {[%clk 0:02:31.5]} 35... Qe1+ {[%clk 0:00:19.6]} 36. Kh2 {[%clk 0:02:32.2]}
36... Qxe5+ {[%clk 0:00:20.4]} 37. dxe5 {[%clk 0:02:33.2]} 37... axb3 {[%clk
0:00:19.7]} 38. e6 {[%clk 0:02:34.1]} 38... fxe6 {[%clk 0:00:20.1]} 39. Qxe6+
{[%clk 0:02:35.2]} 39... Kg7 {[%clk 0:00:22]} 40. Qxd5 {[%clk 0:02:35.6]} 1-0

[Event "*** Titled Tuesday Blitz"]
[Site "Chess.com"]
[Date "2019.01.01"]
[Round "9"]
[White "TBergh98"]
[Black "VladDobrov"]
[Result "0-1"]
[WhiteElo "2293"]
[BlackElo "2818"]
[TimeControl "180+2"]
[EndTime "15:06:23 PST"]
[Termination "VladDobrov won by resignation"]

1. Nf3 {[%clk 0:03:01.9]} 1... d5 {[%clk 0:03:00.6]} 2. c4 {[%clk 0:03:03]} 2...
c6 {[%clk 0:02:58.9]} 3. cxd5 {[%clk 0:03:03.7]} 3... cxd5 {[%clk 0:03:00.8]} 4.
d4 {[%clk 0:03:05.4]} 4... Nf6 {[%clk 0:03:02.3]} 5. Nc3 {[%clk 0:03:06.9]} 5...
Qb6 {[%clk 0:03:03.4]} 6. Na4 {[%clk 0:03:02.9]} 6... Qc7 {[%clk 0:03:00.7]} 7.
Bd2 {[%clk 0:02:53.7]} 7... Nc6 {[%clk 0:03:01.1]} 8. e3 {[%clk 0:02:54.2]} 8...
Bf5 {[%clk 0:03:01.8]} 9. Rc1 {[%clk 0:02:54.6]} 9... e6 {[%clk 0:03:03.1]} 10.
Ne5 {[%clk 0:02:53.4]} 10... Bd6 {[%clk 0:03:02.4]} 11. Nxc6 {[%clk 0:02:54.1]}
11... bxc6 {[%clk 0:03:04.3]} 12. Bb5 {[%clk 0:02:53.3]} 12... O-O {[%clk
0:02:57]} 13. Rxc6 {[%clk 0:02:53.6]} 13... Qb7 {[%clk 0:02:53.3]} 14. Qe2
{[%clk 0:02:22.7]} 14... Ne4 {[%clk 0:02:34.7]} 15. Bc3 {[%clk 0:02:04.5]} 15...
Rab8 {[%clk 0:01:39.5]} 16. f3 {[%clk 0:01:47.9]} 16... Nxc3 {[%clk 0:01:01.8]}
17. Nxc3 {[%clk 0:01:49.8]} 17... Bb4 {[%clk 0:01:01.9]} 18. Ba4 {[%clk
0:01:42.4]} 18... Bxc3+ {[%clk 0:00:51.2]} 19. Rxc3 {[%clk 0:01:13.5]} 19...
Qxb2 {[%clk 0:00:51.9]} 20. Bd1 {[%clk 0:00:36.9]} 20... Qxc3+ {[%clk
0:00:51.9]} 0-1

[Event "*** Titled Tuesday Blitz"]
[Site "Chess.com"]
[Date "2019.01.01"]
[Round "9"]
[White "minnesotachessmaster"]
[Black "Lion_DL"]
[Result "0-1"]
[WhiteElo "1904"]
[BlackElo "2366"]
[TimeControl "180+2"]
[EndTime "15:06:33 PST"]
[Termination "Lion_DL won by resignation"]

1. e4 {[%clk 0:03:01.9]} 1... Nc6 {[%clk 0:02:59.2]} 2. d4 {[%clk 0:03:02.2]}
2... d5 {[%clk 0:03:00.1]} 3. Nc3 {[%clk 0:02:59.6]} 3... e5 {[%clk 0:03:00.5]}
4. exd5 {[%clk 0:02:52.1]} 4... Nxd4 {[%clk 0:02:59.1]} 5. Be3 {[%clk
0:02:49.9]} 5... Nf5 {[%clk 0:02:59.1]} 6. Nf3 {[%clk 0:02:31.2]} 6... a6 {[%clk
0:03:01]} 7. Bg5 {[%clk 0:02:25.3]} 7... f6 {[%clk 0:03:00.3]} 8. Be3 {[%clk
0:02:20.7]} 8... Nxe3 {[%clk 0:02:56.4]} 9. fxe3 {[%clk 0:02:21.5]} 9... Bc5
{[%clk 0:02:57.5]} 10. Qd2 {[%clk 0:02:17]} 10... Ne7 {[%clk 0:02:57.7]} 11. e4
{[%clk 0:02:16.3]} 11... O-O {[%clk 0:02:49.3]} 12. O-O-O {[%clk 0:02:16.8]}
12... b5 {[%clk 0:02:49.3]} 13. Kb1 {[%clk 0:02:14.5]} 13... Bd7 {[%clk
0:02:46.1]} 14. Bd3 {[%clk 0:02:12.2]} 14... b4 {[%clk 0:02:43.9]} 15. Ne2
{[%clk 0:02:12.8]} 15... a5 {[%clk 0:02:43.5]} 16. h3 {[%clk 0:02:06.4]} 16...
a4 {[%clk 0:02:43.7]} 17. g4 {[%clk 0:02:05.5]} 17... Qb8 {[%clk 0:02:33.2]} 18.
Nc1 {[%clk 0:01:54.1]} 18... Qb6 {[%clk 0:02:31.8]} 19. g5 {[%clk 0:01:50]}
19... Ng6 {[%clk 0:02:29.8]} 20. Bc4 {[%clk 0:01:37.7]} 20... Kh8 {[%clk
0:02:27.6]} 21. h4 {[%clk 0:01:33.2]} 21... Bg4 {[%clk 0:02:05.5]} 22. Rdf1
{[%clk 0:01:33.7]} 22... Be3 {[%clk 0:01:43.4]} 23. Qe1 {[%clk 0:01:27.2]} 23...
Bh5 {[%clk 0:01:32.5]} 24. gxf6 {[%clk 0:01:25.3]} 24... Rxf6 {[%clk 0:01:32.3]}
25. Ng5 {[%clk 0:01:26.2]} 25... Nf4 {[%clk 0:01:26.9]} 26. Nd3 {[%clk
0:01:12.9]} 26... Qd4 {[%clk 0:01:13.7]} 27. Nxf4 {[%clk 0:01:05.8]} 27... exf4
{[%clk 0:01:08.2]} 28. Bd3 {[%clk 0:01:01.6]} 28... a3 {[%clk 0:01:06.6]} 0-1

[Event "*** Titled Tuesday Blitz"]
[Site "Chess.com"]
[Date "2019.01.01"]
[Round "9"]
[White "jk13"]
[Black "Arman_Hakemi"]
[Result "0-1"]
[WhiteElo "2675"]
[BlackElo "2488"]
[TimeControl "180+2"]
[EndTime "15:06:54 PST"]
[Termination "Arman_Hakemi won by resignation"]

1. e4 {[%clk 0:03:01.9]} 1... c5 {[%clk 0:03:00.5]} 2. c3 {[%clk 0:03:02.6]}
2... d5 {[%clk 0:03:00.9]} 3. exd5 {[%clk 0:03:04]} 3... Qxd5 {[%clk 0:03:01.9]}
4. d4 {[%clk 0:03:05.9]} 4... g6 {[%clk 0:03:02.9]} 5. Nf3 {[%clk 0:03:07.8]}
5... Bg7 {[%clk 0:03:02.1]} 6. Na3 {[%clk 0:03:09.2]} 6... cxd4 {[%clk
0:03:01.9]} 7. Bc4 {[%clk 0:03:10.4]} 7... Qe4+ {[%clk 0:03:01.6]} 8. Be3 {[%clk
0:03:12]} 8... Nh6 {[%clk 0:03:02.3]} 9. Bd3 {[%clk 0:03:11.3]} 9... Qg4 {[%clk
0:02:54.2]} 10. h3 {[%clk 0:02:48.4]} 10... Qd7 {[%clk 0:02:52.4]} 11. Bb5
{[%clk 0:02:37]} 11... Nc6 {[%clk 0:02:52]} 12. Bxd4 {[%clk 0:02:37.6]} 12...
Bxd4 {[%clk 0:02:51.9]} 13. Nxd4 {[%clk 0:02:34.6]} 13... O-O {[%clk 0:02:52.4]}
14. O-O {[%clk 0:02:34.5]} 14... Nf5 {[%clk 0:02:52.9]} 15. Nac2 {[%clk
0:02:19.7]} 15... Nd6 {[%clk 0:02:48.1]} 16. Bxc6 {[%clk 0:02:13.2]} 16... bxc6
{[%clk 0:02:47.7]} 17. Re1 {[%clk 0:02:14.9]} 17... c5 {[%clk 0:02:45.6]} 18.
Nf3 {[%clk 0:02:16.1]} 18... Bb7 {[%clk 0:02:45.5]} 19. b3 {[%clk 0:02:02.1]}
19... Rad8 {[%clk 0:02:43.8]} 20. c4 {[%clk 0:02:02.4]} 20... Nf5 {[%clk
0:02:40.9]} 21. Qxd7 {[%clk 0:01:58.1]} 21... Rxd7 {[%clk 0:02:41.9]} 22. Rad1
{[%clk 0:01:54.3]} 22... Rfd8 {[%clk 0:02:42.5]} 23. Rxd7 {[%clk 0:01:53.3]}
23... Rxd7 {[%clk 0:02:43.6]} 24. Re2 {[%clk 0:01:20.2]} 24... Bxf3 {[%clk
0:02:41]} 25. gxf3 {[%clk 0:01:22.1]} 25... e6 {[%clk 0:02:41.8]} 26. Kg2 {[%clk
0:01:18.9]} 26... Rd3 {[%clk 0:02:41.6]} 27. Ne3 {[%clk 0:01:17.8]} 27... Kg7
{[%clk 0:02:29.7]} 28. Nxf5+ {[%clk 0:01:11.5]} 28... gxf5 {[%clk 0:02:30.5]}
29. Rc2 {[%clk 0:01:06.7]} 29... Kf6 {[%clk 0:02:31]} 30. f4 {[%clk 0:01:02]}
30... a5 {[%clk 0:02:30.5]} 31. f3 {[%clk 0:00:59.7]} 31... Rd4 {[%clk
0:02:24.4]} 32. Kg3 {[%clk 0:00:55.6]} 32... Ke7 {[%clk 0:02:21.9]} 33. Re2
{[%clk 0:00:50.7]} 33... Kd6 {[%clk 0:02:22.3]} 34. Rc2 {[%clk 0:00:50.8]} 34...
Kc6 {[%clk 0:02:21.1]} 35. Re2 {[%clk 0:00:51.1]} 35... a4 {[%clk 0:02:17.4]}
36. Re3 {[%clk 0:00:45.1]} 36... a3 {[%clk 0:02:17.5]} 37. Re2 {[%clk
0:00:45.4]} 37... Kb6 {[%clk 0:02:18.6]} 38. Rc2 {[%clk 0:00:46.9]} 38... Ka5
{[%clk 0:02:19.6]} 39. Re2 {[%clk 0:00:35.1]} 39... Kb4 {[%clk 0:02:18.1]} 40.
Rc2 {[%clk 0:00:36.3]} 40... Rd1 {[%clk 0:02:15.7]} 41. Kh4 {[%clk 0:00:37]}
41... Rb1 {[%clk 0:02:06.5]} 42. Kg5 {[%clk 0:00:34.9]} 42... Rb2 {[%clk
0:02:07.6]} 43. Rc1 {[%clk 0:00:36.7]} 43... Rxa2 {[%clk 0:02:08.4]} 44. Kf6
{[%clk 0:00:38.2]} 44... Rb2 {[%clk 0:02:09.4]} 45. Kxf7 {[%clk 0:00:39.5]}
45... a2 {[%clk 0:02:10.9]} 46. Ra1 {[%clk 0:00:40]} 46... Kxb3 {[%clk
0:02:12.3]} 47. Kxe6 {[%clk 0:00:41.9]} 47... Rb1 {[%clk 0:02:12.9]} 0-1

[Event "*** Titled Tuesday Blitz"]
[Site "Chess.com"]
[Date "2019.01.01"]
[Round "9"]
[White "Ali_rastbod"]
[Black "gonzaga23"]
[Result "1/2-1/2"]
[WhiteElo "2607"]
[BlackElo "2467"]
[TimeControl "180+2"]
[EndTime "15:06:55 PST"]
[Termination "Game drawn by agreement"]

1. c4 {[%clk 0:03:01.9]} 1... Nf6 {[%clk 0:02:53.2]} 2. Nc3 {[%clk 0:03:03.1]}
2... g6 {[%clk 0:02:50.8]} 3. g3 {[%clk 0:03:04.2]} 3... Bg7 {[%clk 0:02:49.3]}
4. Bg2 {[%clk 0:03:05.5]} 4... O-O {[%clk 0:02:51.2]} 5. d4 {[%clk 0:03:04.7]}
5... d6 {[%clk 0:02:47.1]} 6. Nf3 {[%clk 0:03:04.5]} 6... Nbd7 {[%clk
0:02:38.4]} 7. O-O {[%clk 0:03:04.2]} 7... Rb8 {[%clk 0:02:11.7]} 8. b3 {[%clk
0:02:59.1]} 8... b6 {[%clk 0:01:52.8]} 9. e4 {[%clk 0:02:56.7]} 9... e5 {[%clk
0:01:48]} 10. dxe5 {[%clk 0:02:40.8]} 10... Nxe5 {[%clk 0:01:47.8]} 11. Nd4
{[%clk 0:02:39.6]} 11... Bb7 {[%clk 0:01:39.6]} 12. Re1 {[%clk 0:02:40.2]} 12...
Nfd7 {[%clk 0:01:35.1]} 13. Bb2 {[%clk 0:02:22]} 13... Re8 {[%clk 0:01:18.7]}
14. Qc2 {[%clk 0:02:22]} 14... Nxc4 {[%clk 0:01:11.5]} 15. bxc4 {[%clk
0:02:10.2]} 15... Bxd4 {[%clk 0:01:08.4]} 16. Rad1 {[%clk 0:02:10.5]} 16... Bg7
{[%clk 0:00:50.1]} 17. h3 {[%clk 0:02:02.3]} 17... Qg5 {[%clk 0:00:43.9]} 18.
Kh2 {[%clk 0:02:00.4]} 18... Nc5 {[%clk 0:00:39.4]} 19. f4 {[%clk 0:02:00.4]}
19... Qh5 {[%clk 0:00:31.7]} 20. Rd2 {[%clk 0:01:36.8]} 20... Re7 {[%clk
0:00:26.2]} 21. Nd5 {[%clk 0:01:30.4]} 21... Bxd5 {[%clk 0:00:27]} 22. cxd5
{[%clk 0:01:29.4]} 22... Rbe8 {[%clk 0:00:27]} 23. Bxg7 {[%clk 0:01:29.3]} 23...
Kxg7 {[%clk 0:00:28.9]} 24. Rde2 {[%clk 0:01:29.3]} 24... f6 {[%clk 0:00:20]}
1/2-1/2

[Event "*** Titled Tuesday Blitz"]
[Site "Chess.com"]
[Date "2019.01.01"]
[Round "9"]
[White "snowlord"]
[Black "Parhamov"]
[Result "0-1"]
[WhiteElo "2699"]
[BlackElo "2890"]
[TimeControl "180+2"]
[EndTime "15:07:01 PST"]
[Termination "Parhamov won by resignation"]

1. e4 {[%clk 0:02:55.1]} 1... c5 {[%clk 0:02:32.3]} 2. Nf3 {[%clk 0:02:33.1]}
2... d6 {[%clk 0:02:33]} 3. d4 {[%clk 0:02:34]} 3... cxd4 {[%clk 0:02:33.1]} 4.
Nxd4 {[%clk 0:02:35.1]} 4... Nf6 {[%clk 0:02:34.4]} 5. Nc3 {[%clk 0:02:36.2]}
5... Nc6 {[%clk 0:02:34.8]} 6. Bc4 {[%clk 0:02:37.6]} 6... e6 {[%clk 0:02:34.4]}
7. Be3 {[%clk 0:02:38.5]} 7... a6 {[%clk 0:02:34.5]} 8. Qe2 {[%clk 0:02:39.3]}
8... Na5 {[%clk 0:02:30.1]} 9. Bb3 {[%clk 0:02:29]} 9... b5 {[%clk 0:02:26.3]}
10. O-O-O {[%clk 0:02:26.4]} 10... b4 {[%clk 0:02:21.3]} 11. Na4 {[%clk
0:02:21.3]} 11... Bd7 {[%clk 0:02:18.3]} 12. Nxe6 {[%clk 0:01:56]} 12... Nxb3+
{[%clk 0:02:11.6]} 13. axb3 {[%clk 0:01:55.9]} 13... fxe6 {[%clk 0:02:12.8]} 14.
Bb6 {[%clk 0:01:55]} 14... Qb8 {[%clk 0:02:06.7]} 15. Qc4 {[%clk 0:01:46.1]}
15... d5 {[%clk 0:01:58.3]} 16. exd5 {[%clk 0:01:46.4]} 16... Bxa4 {[%clk
0:01:59.1]} 17. bxa4 {[%clk 0:01:32]} 17... Qxb6 {[%clk 0:01:59.1]} 18. Rhe1
{[%clk 0:01:33.6]} 18... Bd6 {[%clk 0:01:57.2]} 19. Rxe6+ {[%clk 0:01:28.1]}
19... Kf7 {[%clk 0:01:58.4]} 20. g4 {[%clk 0:01:18.7]} 20... Rac8 {[%clk
0:01:49.9]} 21. Qe2 {[%clk 0:01:16.4]} 21... Rhd8 {[%clk 0:01:44]} 22. Kb1
{[%clk 0:00:57]} 22... b3 {[%clk 0:01:39.4]} 23. c3 {[%clk 0:00:53.7]} 23... Qa5
{[%clk 0:01:29.7]} 24. Rd4 {[%clk 0:00:24.3]} 24... Bc5 {[%clk 0:01:21.4]} 25.
Rxa6 {[%clk 0:00:23.4]} 25... Qc7 {[%clk 0:01:22.2]} 26. Qe6+ {[%clk 0:00:12.7]}
26... Kf8 {[%clk 0:01:22.9]} 27. Rc4 {[%clk 0:00:05.5]} 27... Rxd5 {[%clk
0:01:20.6]} 28. Rd4 {[%clk 0:00:03.5]} 0-1

[Event "*** Titled Tuesday Blitz"]
[Site "Chess.com"]
[Date "2019.01.01"]
[Round "9"]
[White "enriquetejedor"]
[Black "JoakimVonAnd"]
[Result "0-1"]
[WhiteElo "2495"]
[BlackElo "2360"]
[TimeControl "180+2"]
[EndTime "15:07:02 PST"]
[Termination "JoakimVonAnd won by checkmate"]

1. e4 {[%clk 0:03:01.9]} 1... c6 {[%clk 0:02:59.8]} 2. d4 {[%clk 0:03:02.1]}
2... d5 {[%clk 0:03:01.7]} 3. Nc3 {[%clk 0:03:03.4]} 3... dxe4 {[%clk
0:03:02.1]} 4. Nxe4 {[%clk 0:03:05.3]} 4... Bf5 {[%clk 0:03:03.5]} 5. Ng3 {[%clk
0:03:06]} 5... Bg6 {[%clk 0:03:04.9]} 6. Nh3 {[%clk 0:03:07.1]} 6... Nf6 {[%clk
0:03:05.8]} 7. Nf4 {[%clk 0:03:08.5]} 7... e5 {[%clk 0:03:07]} 8. dxe5 {[%clk
0:03:04.7]} 8... Qa5+ {[%clk 0:03:06.7]} 9. Bd2 {[%clk 0:03:02.7]} 9... Qxe5+
{[%clk 0:03:07.3]} 10. Qe2 {[%clk 0:03:03.7]} 10... Qxe2+ {[%clk 0:03:05.4]} 11.
Bxe2 {[%clk 0:03:05.6]} 11... Bxc2 {[%clk 0:03:06.3]} 12. O-O {[%clk 0:03:05.8]}
12... Bd6 {[%clk 0:03:04.1]} 13. Rac1 {[%clk 0:03:05.9]} 13... Bg6 {[%clk
0:03:04.2]} 14. Rfd1 {[%clk 0:03:05.7]} 14... O-O {[%clk 0:03:03.9]} 15. Nxg6
{[%clk 0:03:06.6]} 15... hxg6 {[%clk 0:03:04.8]} 16. Be3 {[%clk 0:03:08.1]}
16... Be5 {[%clk 0:03:00.4]} 17. f4 {[%clk 0:03:06.2]} 17... Bc7 {[%clk
0:02:52.3]} 18. Bf3 {[%clk 0:03:07.5]} 18... Bb6 {[%clk 0:02:51.4]} 19. Kf2
{[%clk 0:03:05]} 19... Nbd7 {[%clk 0:02:51]} 20. Rc3 {[%clk 0:03:03.3]} 20...
Rfe8 {[%clk 0:02:50.2]} 21. Bxb6 {[%clk 0:03:02.6]} 21... axb6 {[%clk
0:02:49.9]} 22. a3 {[%clk 0:03:03.7]} 22... b5 {[%clk 0:02:50.5]} 23. Rcd3
{[%clk 0:02:59.5]} 23... Nb6 {[%clk 0:02:46.5]} 24. f5 {[%clk 0:02:47.1]} 24...
g5 {[%clk 0:02:43.1]} 25. h3 {[%clk 0:02:46.8]} 25... Nc4 {[%clk 0:02:41.9]} 26.
Rb3 {[%clk 0:02:47.7]} 26... Rad8 {[%clk 0:02:39.2]} 27. Rxd8 {[%clk 0:02:47.7]}
27... Rxd8 {[%clk 0:02:41.1]} 28. Nf1 {[%clk 0:02:48.2]} 28... Nd7 {[%clk
0:02:07.5]} 29. a4 {[%clk 0:02:41]} 29... Nc5 {[%clk 0:02:06.9]} 30. Ra3 {[%clk
0:02:14.1]} 30... bxa4 {[%clk 0:02:05.2]} 31. Ra2 {[%clk 0:02:13.2]} 31... Nxb2
{[%clk 0:02:06.1]} 32. Ne3 {[%clk 0:02:04.8]} 32... Nbd3+ {[%clk 0:02:05.8]} 33.
Kg3 {[%clk 0:02:05.5]} 33... Nb4 {[%clk 0:02:03.7]} 34. Rb2 {[%clk 0:02:05.4]}
34... Nbd3 {[%clk 0:01:56.5]} 35. Rd2 {[%clk 0:02:05.7]} 35... Ra8 {[%clk
0:01:56.6]} 36. Nc4 {[%clk 0:02:04.2]} 36... Nb4 {[%clk 0:01:55.2]} 37. Nd6
{[%clk 0:02:03.3]} 37... a3 {[%clk 0:01:53.9]} 38. Kg4 {[%clk 0:02:02.6]} 38...
a2 {[%clk 0:01:54.3]} 39. Rxa2 {[%clk 0:02:04]} 39... Rxa2 {[%clk 0:01:53.5]}
40. Kxg5 {[%clk 0:02:05.9]} 40... Nd5 {[%clk 0:01:53.5]} 41. h4 {[%clk
0:02:05.1]} 41... f6+ {[%clk 0:01:48.1]} 42. Kg4 {[%clk 0:02:05.4]} 42... Nd3
{[%clk 0:01:44.7]} 43. h5 {[%clk 0:02:05.5]} 43... Ne5+ {[%clk 0:01:45.7]} 44.
Kh4 {[%clk 0:02:06.1]} 44... Nxf3+ {[%clk 0:01:47]} 45. gxf3 {[%clk 0:02:07.1]}
45... b5 {[%clk 0:01:43.9]} 46. f4 {[%clk 0:02:08.3]} 46... Nxf4 {[%clk
0:01:44.5]} 47. Kg4 {[%clk 0:02:07.7]} 47... Nd5 {[%clk 0:01:45.2]} 48. h6
{[%clk 0:02:09]} 48... gxh6 {[%clk 0:01:45.1]} 49. Kh5 {[%clk 0:02:10.5]} 49...
b4 {[%clk 0:01:44.4]} 50. Kxh6 {[%clk 0:02:11.4]} 50... b3 {[%clk 0:01:45.7]}
51. Ne8 {[%clk 0:02:11.7]} 51... Rg2 {[%clk 0:01:46]} 52. Kh5 {[%clk 0:02:09.9]}
52... Rg5+ {[%clk 0:01:39.6]} 53. Kh6 {[%clk 0:02:10]} 53... Rxf5 {[%clk
0:01:39.7]} 54. Nd6 {[%clk 0:02:10]} 54... b2 {[%clk 0:01:39.7]} 55. Nxf5 {[%clk
0:02:05]} 55... b1=Q {[%clk 0:01:40.8]} 56. Ng3 {[%clk 0:02:02.2]} 56... Kf7
{[%clk 0:01:41.1]} 57. Nf5 {[%clk 0:02:02.6]} 57... Qh1+ {[%clk 0:01:38.2]} 58.
Nh4 {[%clk 0:02:03.4]} 58... Qxh4# {[%clk 0:01:39.2]} 0-1

[Event "*** Titled Tuesday Blitz"]
[Site "Chess.com"]
[Date "2019.01.01"]
[Round "9"]
[White "IngOscarArdila"]
[Black "Iyael"]
[Result "1-0"]
[WhiteElo "2076"]
[BlackElo "2153"]
[TimeControl "180+2"]
[EndTime "15:07:13 PST"]
[Termination "IngOscarArdila won by resignation"]

1. e4 {[%clk 0:03:01.9]} 1... c5 {[%clk 0:03:00.3]} 2. Nf3 {[%clk 0:03:02.1]}
2... Nc6 {[%clk 0:03:00.3]} 3. Bb5 {[%clk 0:03:02.8]} 3... e6 {[%clk 0:03:00.6]}
4. Bxc6 {[%clk 0:03:02.3]} 4... bxc6 {[%clk 0:03:00.8]} 5. O-O {[%clk
0:03:03.9]} 5... f6 {[%clk 0:03:00.3]} 6. Re1 {[%clk 0:03:02.1]} 6... Ne7 {[%clk
0:02:58.3]} 7. d3 {[%clk 0:03:01.1]} 7... Ng6 {[%clk 0:02:58.6]} 8. Nc3 {[%clk
0:03:00.6]} 8... Be7 {[%clk 0:02:58.3]} 9. Be3 {[%clk 0:02:50.8]} 9... e5 {[%clk
0:02:54.9]} 10. h3 {[%clk 0:02:44.6]} 10... O-O {[%clk 0:02:55.4]} 11. Qd2
{[%clk 0:02:40.2]} 11... d6 {[%clk 0:02:55.2]} 12. Qe2 {[%clk 0:02:34.7]} 12...
f5 {[%clk 0:02:55.2]} 13. exf5 {[%clk 0:02:31.9]} 13... Bxf5 {[%clk 0:02:56]}
14. Ne4 {[%clk 0:02:28.8]} 14... h6 {[%clk 0:02:49.8]} 15. Ng3 {[%clk
0:02:28.4]} 15... Be6 {[%clk 0:02:48.3]} 16. c3 {[%clk 0:02:26.8]} 16... Qd7
{[%clk 0:02:48.3]} 17. Kh2 {[%clk 0:02:26.7]} 17... Nf4 {[%clk 0:02:48.7]} 18.
Bxf4 {[%clk 0:02:26.2]} 18... Rxf4 {[%clk 0:02:49.3]} 19. d4 {[%clk 0:02:09.6]}
19... cxd4 {[%clk 0:02:49]} 20. cxd4 {[%clk 0:02:10.3]} 20... Bd5 {[%clk
0:02:34.8]} 21. dxe5 {[%clk 0:02:02.1]} 21... Bxf3 {[%clk 0:02:35.5]} 22. gxf3
{[%clk 0:02:00.8]} 22... Raf8 {[%clk 0:02:35]} 23. e6 {[%clk 0:01:49.8]} 23...
Qc7 {[%clk 0:02:32.8]} 24. Kg2 {[%clk 0:01:40.1]} 24... d5 {[%clk 0:02:29.7]}
25. Rac1 {[%clk 0:01:34.1]} 25... g5 {[%clk 0:02:20.3]} 26. Rc3 {[%clk
0:01:33.2]} 26... R8f6 {[%clk 0:02:16.1]} 27. Re3 {[%clk 0:01:32.4]} 27... Rh4
{[%clk 0:02:11.2]} 28. Qd3 {[%clk 0:01:26]} 28... Qf4 {[%clk 0:02:06.7]} 29. Qa6
{[%clk 0:01:04.2]} 29... Qd6 {[%clk 0:02:06.5]} 30. Qc8+ {[%clk 0:01:03.4]}
30... Kg7 {[%clk 0:02:06.6]} 31. Qd7 {[%clk 0:01:03.7]} 31... Qc5 {[%clk
0:01:54.1]} 32. Rc3 {[%clk 0:00:56.6]} 32... Rc4 {[%clk 0:01:49.9]} 33. Nh5+
{[%clk 0:00:50.1]} 33... Kg6 {[%clk 0:01:49.8]} 34. Nxf6 {[%clk 0:00:51]} 34...
Kxf6 {[%clk 0:01:50.4]} 35. Qe8 {[%clk 0:00:39.1]} 35... Kg7 {[%clk 0:01:41.9]}
36. Qf7+ {[%clk 0:00:39.6]} 36... Kh8 {[%clk 0:01:42.6]} 37. Rb3 {[%clk
0:00:35.3]} 37... Qd6 {[%clk 0:01:40.2]} 38. Rb7 {[%clk 0:00:26.3]} 1-0